fUST/lending_fUST_20250624
["ID","MTS","AMOUNT","RATE_DAILY","PERIOD"]
[367368037,1750769445567,-298.85966088,0.00019973,2]
[367368039,1750769445576,-500.0,0.00019973,2]
[367368041,1750769445585,-475.91412624,0.00019973,2]
[367368044,1750769445595,-500.0,0.00019973,2]
[367368046,1750769445604,-500.0,0.00019973,2]
[367368048,1750769445613,-504.51568774,0.00019973,2]
[367368050,1750769445622,-500.0,0.00019973,2]
[367368052,1750769445631,-151.0,0.00019973,2]
[367368054,1750769445640,-151.0,0.00019973,2]
[367368056,1750769445650,-154.396378,0.00019973,2]
[367368059,1750769445659,-154.396378,0.00019973,2]
[367368061,1750769445668,-241.172745,0.00019973,2]
[367368063,1750769445677,-158.8532305,0.00019981,2]
[367368065,1750769445686,-267.229895,0.00019988,2]
[367368067,1750769445696,-100000.0,0.0001999,2]
[367368069,1750769445705,-900.0,0.0001999,2]
[367368071,1750769445714,-151.0,0.0001999,2]
[367368073,1750769445723,-151.0,0.0001999,2]
[367368075,1750769445732,-151.0,0.0001999,2]
[367368077,1750769445741,-151.0,0.0001999,2]
[367368079,1750769445751,-151.0,0.0001999,2]
[367368081,1750769445760,-151.0,0.0001999,2]
[367368083,1750769445769,-151.0,0.0001999,2]
[367368085,1750769445779,-151.0,0.0001999,2]
[367368087,1750769445788,-735.009388,0.0001999,2]
[367368089,1750769445799,-735.009388,0.0001999,2]
[367368091,1750769445809,-632.224518,0.0001999,2]
[367368093,1750769445818,-201.755743,0.0001999,2]
[367368095,1750769445827,-632.224518,0.0001999,2]
[367368097,1750769445837,-154.396378,0.0001999,2]
[367368099,1750769445846,-154.396378,0.0001999,2]
[367368101,1750769445855,-151.0,0.0001999,2]
[367368103,1750769445865,-151.0,0.0001999,2]
[367368105,1750769445873,-151.0,0.0001999,2]
[367368107,1750769445882,-151.0,0.0001999,2]
[367368109,1750769445891,-151.0,0.0001999,2]
[367368111,1750769445901,-200.0,0.00019999,2]
[367368113,1750769445910,-200.49751153,0.00019999,2]
[367368115,1750769445919,-460.0,0.00019999,2]
[367368117,1750769445929,-290.32813888,0.00019999,2]
[367368119,1750769445938,-784.01,0.00019999,2]
[367368121,1750769445948,-2261.93,0.00019999,2]
[367368123,1750769445957,-778.04,0.00019999,2]
[367368125,1750769445966,-460.0,0.00019999,2]
[367368127,1750769445974,-460.0,0.00019999,2]
[367368129,1750769445984,-2341.33,0.00019999,2]
[367368131,1750769445994,-460.0,0.00019999,2]
[367368132,1750769446003,-1405.65,0.00019999,2]
[367368134,1750769446013,-1709.43,0.00019999,2]
[367368136,1750769446022,-460.0,0.00019999,2]
[367368138,1750769446031,-3575.0,0.0002,2]
[367368140,1750769446041,-6857.0,0.0002,2]
[367368142,1750769446050,-36359.19400879,0.0002,2]
[367368144,1750769446059,-11187.30243982,0.0002,2]
[367368146,1750769446068,-13640.56659704,0.0002,2]
[367368148,1750769446077,-1186.30353406,0.0002,2]
[367368150,1750769446086,-16838.65825531,0.0002,20]
[367368152,1750769446095,-150.0008541,0.0002,7]
[367368154,1750769446106,-361.23988175,0.0002,2]
[367368156,1750769446115,-40000.0,0.0002,2]
[367368158,1750769446124,-2871.16349796,0.0002,2]
[367368160,1750769446133,-7777.0,0.0002,7]
[367368162,1750769446142,-67593.11528451,0.0002,2]
[367368164,1750769446151,-10000.0,0.0002,2]
[367368166,1750769446160,-460.0,0.0002,2]
[367368168,1750769446170,-200.0,0.0002,2]
[367368170,1750769446179,-460.0,0.0002,2]
[367368172,1750769446188,-151.0,0.0002,2]
[367368174,1750769446197,-151.0,0.0002,2]
[367368176,1750769446207,-151.0,0.0002,2]
[367368179,1750769446216,-185.24481457,0.0002,2]
[367368181,1750769446226,-2000.0,0.0002,2]
[367368183,1750769446235,-460.0,0.0002,2]
[367368184,1750769446244,-151.0,0.0002,2]
[367368187,1750769446254,-151.0,0.0002,2]
[367368188,1750769446263,-151.0,0.0002,2]
[367368190,1750769446273,-151.0,0.0002,2]
[367368192,1750769446282,-720.11,0.0002,2]
[367368194,1750769446291,-151.0,0.0002,2]
[367368197,1750769446301,-151.0,0.0002,2]
[367368198,1750769446310,-460.0,0.0002,2]
[367368200,1750769446320,-1347.07,0.0002,2]
[367368202,1750769446329,-460.0,0.0002,2]
[367368204,1750769446338,-460.0,0.0002,2]
[367368206,1750769446347,-151.0,0.0002,2]
[367368208,1750769446356,-151.0,0.0002,2]
[367368210,1750769446365,-151.0,0.0002,2]
[367368212,1750769446374,-151.0,0.0002,2]
[367368214,1750769446383,-151.0,0.0002,2]
[367368216,1750769446392,-151.0,0.0002,2]
[367368218,1750769446401,-643.09,0.0002,2]
[367368220,1750769446414,-460.0,0.0002,2]
[367368222,1750769446424,-151.0,0.0002,2]
[367368224,1750769446433,-292.187845,0.0002,2]
[367368226,1750769446443,-506.76,0.0002,2]
[367368228,1750769446452,-735.009388,0.0002,2]
[367368230,1750769446462,-735.009388,0.0002,2]
[367368232,1750769446471,-735.009388,0.0002,2]
[367368234,1750769446481,-735.009388,0.0002,2]
[367368236,1750769446490,-460.0,0.0002,2]
[367368238,1750769446499,-735.009388,0.0002,2]
[367368240,1750769446508,-735.009388,0.0002,2]
[367368242,1750769446517,-1365.04,0.0002,2]
[367368244,1750769446526,-460.0,0.0002,2]
[367368246,1750769446535,-460.0,0.0002,2]
[367368248,1750769446545,-632.224518,0.0002,2]
[367368250,1750769446554,-632.224518,0.0002,2]
[367368252,1750769446562,-632.224518,0.0002,2]
[367368254,1750769446572,-201.755743,0.0002,2]
[367368256,1750769446581,-201.755743,0.0002,2]
[367368258,1750769446590,-201.755743,0.0002,2]
[367368260,1750769446599,-3428.5,0.0002,2]
[367368262,1750769446608,-632.224518,0.0002,2]
[367368264,1750769446616,-632.224518,0.0002,2]
[367368266,1750769446625,-632.224518,0.0002,2]
[367368268,1750769446634,-460.0,0.0002,2]
[367368270,1750769446643,-460.0,0.0002,2]
[367368272,1750769446652,-929.48,0.0002,2]
[367368274,1750769446661,-2502.6,0.0002,2]
[367368276,1750769446670,-868.07,0.0002,2]
[367368278,1750769446680,-460.0,0.0002,2]
[367368280,1750769446689,-460.0,0.0002,2]
[367368282,1750769446699,-387.50381283,0.0002,2]
[367368285,1750769446709,-2381.53,0.0002,2]
[367368287,1750769446718,-460.0,0.0002,2]
[367368289,1750769446726,-2398.67,0.0002,2]
[367368291,1750769446735,-154.396378,0.0002,2]
[367368294,1750769446744,-154.396378,0.0002,2]
[367368296,1750769446753,-154.396378,0.0002,2]
[367368298,1750769446762,-506.51,0.0002,2]
[367368300,1750769446771,-248.52143622,0.0002,2]
[367368302,1750769446780,-154.396378,0.0002,2]
[367368304,1750769446788,-154.396378,0.0002,2]
[367368306,1750769446798,-154.396378,0.0002,2]
[367368308,1750769446807,-460.0,0.0002,2]
[367368310,1750769446816,-878.85,0.0002,2]
[367368312,1750769446825,-460.0,0.0002,2]
[367368314,1750769446834,-460.0,0.0002,2]
[367368316,1750769446843,-725.26,0.0002,2]
[367368318,1750769446852,-460.0,0.0002,2]
[367368320,1750769446860,-460.0,0.0002,2]
[367368322,1750769446869,-460.0,0.0002,2]
[367368324,1750769446878,-460.0,0.0002,2]
[367368326,1750769446888,-1603.76,0.0002,2]
[367368328,1750769446897,-2104.84,0.0002,2]
[367368330,1750769446906,-460.0,0.0002,2]
[367368332,1750769446916,-544.13,0.0002,2]
[367368334,1750769446925,-460.0,0.0002,2]
[367368336,1750769446934,-151.0,0.0002,2]
[367368338,1750769446942,-1132.63,0.0002,2]
[367368340,1750769446951,-526.56349348,0.0002,2]
[367368342,1750769446960,-460.0,0.0002,2]
[367368344,1750769446969,-460.0,0.0002,2]
[367368346,1750769446977,-718.79,0.0002,2]
[367368348,1750769446986,-2867.63,0.0002,2]
[367368350,1750769446996,-460.0,0.0002,2]
[367368352,1750769447005,-460.0,0.0002,2]
[367368354,1750769447014,-740.01,0.0002,2]
[367368355,1750769447023,-664.63,0.0002,2]
[367368357,1750769447031,-460.0,0.0002,2]
[367368359,1750769447040,-460.0,0.0002,2]
[367368361,1750769447049,-808.74,0.0002,2]
[367368363,1750769447058,-460.0,0.0002,2]
[367368365,1750769447067,-151.0,0.0002,2]
[367368367,1750769447076,-151.0,0.0002,2]
[367368368,1750769447085,-151.0,0.0002,2]
[367368370,1750769447094,-151.0,0.0002,2]
[367368372,1750769447103,-151.0,0.0002,2]
[367368374,1750769447111,-638.77,0.0002,2]
[367368376,1750769447120,-151.0,0.0002,2]
[367368378,1750769447129,-5610.11,0.0002,2]
[367368380,1750769447138,-1399.59,0.0002,2]
[367368382,1750769447147,-460.0,0.0002,2]
[367368384,1750769447156,-697.7,0.0002,2]
[367368386,1750769447165,-2291.43,0.0002,2]
[367368388,1750769447173,-805.74,0.0002,2]
[367368390,1750769447182,-460.0,0.0002,2]
[367368392,1750769447191,-460.0,0.0002,2]
[367368393,1750769447199,-460.0,0.0002,2]
[367368395,1750769447208,-826.81,0.0002,2]
[367368397,1750769447217,-460.0,0.0002,2]
[367368399,1750769447226,-912.86,0.0002,2]
[367368401,1750769447235,-460.0,0.0002,2]
[367368403,1750769447244,-460.0,0.0002,2]
[367368405,1750769447253,-890.87,0.0002,2]
[367368407,1750769447262,-845.61,0.0002,2]
[367368409,1750769447271,-616.75,0.0002,2]
[367368411,1750769447280,-151.0,0.0002,2]
[367368413,1750769447289,-151.0,0.0002,2]
[367368415,1750769447298,-269.096893,0.0002,2]
[367368417,1750769447308,-722.78,0.0002,2]
[367368419,1750769447317,-460.0,0.0002,2]
[367368421,1750769447326,-537.77,0.0002,2]
[367368422,1750769447334,-635.81,0.0002,2]
[367368424,1750769447343,-474.97,0.0002,2]
[367368426,1750769447352,-3074.74,0.0002,2]
[367368428,1750769447362,-3474.53314076,0.0002,2]
[367368430,1750769447371,-460.0,0.0002,2]
[367368432,1750769447380,-460.0,0.0002,2]
[367368434,1750769447389,-151.0,0.0002,2]
[367368436,1750769447398,-151.0,0.0002,2]
[367368438,1750769447408,-151.0,0.0002,2]
[367368440,1750769447421,-509.28,0.0002,2]
[367368442,1750769447430,-4460.21824594,0.00020067,2]
[367368444,1750769447438,-157539.48475559,0.00020067,2]
[367368446,1750769447447,-151.0,0.00020067,2]
[367368448,1750769447459,-151.0,0.00020067,2]
[367368450,1750769447468,-151.0,0.00020067,2]
[367368452,1750769447477,-151.0,0.00020067,2]
[367368454,1750769447487,-151.0,0.00020067,2]
[367368456,1750769447496,-151.0,0.00020067,2]
[367368458,1750769447505,-258.434319,0.00020067,2]
[367368460,1750769447514,-151.0,0.00020067,2]
[367368462,1750769447523,-151.0,0.00020067,2]
[367368464,1750769447532,-735.009388,0.00020067,2]
[367368466,1750769447541,-735.009388,0.00020067,2]
[367368467,1750769447550,-632.224518,0.00020067,2]
[367368469,1750769447559,-201.755743,0.00020067,2]
[367368472,1750769447569,-632.224518,0.00020067,2]
[367368473,1750769447578,-154.396378,0.00020067,2]
[367368475,1750769447587,-154.396378,0.00020067,2]
[367368477,1750769447596,-151.0,0.00020067,2]
[367368479,1750769447605,-151.0,0.00020067,2]
[367368481,1750769447614,-151.0,0.00020067,2]
[367368483,1750769447623,-3474.53314053,0.00020072,2]
[367368485,1750769447632,-5482.78492473,0.00020077,2]
[367368487,1750769447641,-151.0,0.000201,4]
[367368489,1750769447650,-500.0,0.00020164,2]
[367368491,1750769447659,-160.0,0.0002017,3]
[367368493,1750769447669,-154.00978643,0.00020178,2]
[367368495,1750769447678,-339.008578,0.00020187,2]
[367368497,1750769447687,-4500.0,0.000202,2]
[367368498,1750769447696,-151.0,0.000202,4]
[367368499,1750769447705,-2907.0,0.00020217,2]
[367368500,1750769447714,-4000.0,0.00020222,4]
[367368501,1750769447723,-770487.4503228,0.00020229,2]
[367368549,1750769448193,-500.0,0.00019169,2]
[367368551,1750769448202,-581.84563137,0.00019178,2]
[367368553,1750769448211,-151.0,0.00019714,2]
[367368555,1750769448220,-151.0,0.00019725,2]
[367368556,1750769448229,-151.0,0.00019726,2]
[367368559,1750769448239,-151.0,0.0001999,2]
[367368561,1750769448248,-151.0,0.0002,2]
[367368562,1750769448257,-283.87458108,0.00020229,2]
[367368565,1750769448269,-4244.21025503,0.00020229,2]
[367368624,1750769448824,-151.0,0.0002,2]
[367368626,1750769448833,-151.0,0.0002,2]
[367368628,1750769448842,-151.0,0.00020067,2]
[367368630,1750769448851,-169602.88579062,0.00020229,2]
[367368698,1750769449481,-29318.99202767,0.00020229,2]
[367368701,1750769449494,-144757.9941128,0.00020229,2]
[367368703,1750769449503,-222981.57520218,0.0002023,2]
[367368705,1750769449512,-151.0,0.0002023,2]
[367368707,1750769449521,-151.0,0.0002023,2]
[367368709,1750769449530,-151.0,0.0002023,2]
[367368711,1750769449539,-151.0,0.0002023,2]
[367368713,1750769449548,-151.0,0.0002023,2]
[367368715,1750769449557,-735.009388,0.0002023,2]
[367368717,1750769449566,-735.009388,0.0002023,2]
[367368719,1750769449575,-632.224518,0.0002023,2]
[367368720,1750769449584,-201.755743,0.0002023,2]
[367368722,1750769449593,-632.224518,0.0002023,2]
[367368724,1750769449603,-154.396378,0.0002023,2]
[367368726,1750769449613,-154.396368,0.0002023,2]
[367368728,1750769449624,-225.494757,0.0002023,2]
[367368730,1750769449633,-151.0,0.0002023,2]
[367368732,1750769449642,-151.0,0.0002023,2]
[367368735,1750769449652,-176.665488,0.0002023,2]
[367368737,1750769449660,-5482.78492473,0.00020231,2]
[367368738,1750769449670,-9718.63311323,0.00020231,2]
[367368740,1750769449679,-3474.53314053,0.00020245,2]
[367368743,1750769449688,-282.46508258,0.00020269,2]
[367368745,1750769449697,-933.8401,0.00020269,2]
[367368747,1750769449708,-53211.28186519,0.0002027,2]
[367368749,1750769449718,-151.0,0.0002027,2]
[367368751,1750769449727,-151.0,0.0002027,2]
[367368753,1750769449736,-735.009388,0.0002027,2]
[367368755,1750769449746,-735.009395,0.0002027,2]
[367368757,1750769449755,-632.224518,0.0002027,2]
[367368759,1750769449764,-201.755739,0.0002027,2]
[367368761,1750769449773,-632.224528,0.0002027,2]
[367368763,1750769449783,-460.0,0.00020273,2]
[367368765,1750769449792,-460.0,0.00020273,2]
[367368767,1750769449802,-460.0,0.00020273,2]
[367368769,1750769449811,-460.0,0.00020273,2]
[367368771,1750769449820,-151.0,0.00020273,2]
[367368773,1750769449829,-151.0,0.00020273,2]
[367368775,1750769449838,-720.11,0.00020273,2]
[367368777,1750769449847,-151.0,0.00020273,2]
[367368779,1750769449856,-585.60028224,0.00020273,2]
[367368781,1750769449865,-1347.07,0.00020273,2]
[367368783,1750769449874,-460.0,0.00020273,2]
[367368785,1750769449883,-460.0,0.00020273,2]
[367368787,1750769449893,-643.09,0.00020273,2]
[367368789,1750769449902,-460.0,0.00020273,2]
[367368791,1750769449911,-506.76,0.00020273,2]
[367368793,1750769449920,-460.0,0.00020273,2]
[367368795,1750769449929,-460.0,0.00020273,2]
[367368797,1750769449938,-460.0,0.00020273,2]
[367368799,1750769449946,-3428.5,0.00020273,2]
[367368801,1750769449956,-460.0,0.00020273,2]
[367368803,1750769449965,-460.0,0.00020273,2]
[367368805,1750769449974,-929.48,0.00020273,2]
[367368807,1750769449982,-2502.6,0.00020273,2]
[367368809,1750769449992,-868.07,0.00020273,2]
[367368811,1750769450001,-2381.53,0.00020273,2]
[367368813,1750769450011,-460.0,0.00020273,2]
[367368815,1750769450020,-2398.67,0.00020273,2]
[367368816,1750769450030,-506.51,0.00020273,2]
[367368818,1750769450039,-290.72377098,0.00020273,2]
[367368820,1750769450048,-878.85,0.00020273,2]
[367368822,1750769450057,-2261.93,0.00020273,2]
[367368824,1750769450066,-460.0,0.00020273,2]
[367368826,1750769450075,-460.0,0.00020273,2]
[367368828,1750769450084,-725.26,0.00020273,2]
[367368830,1750769450093,-460.0,0.00020273,2]
[367368832,1750769450102,-778.04,0.00020273,2]
[367368834,1750769450111,-460.0,0.00020273,2]
[367368836,1750769450120,-460.0,0.00020273,2]
[367368838,1750769450130,-1603.76,0.00020273,2]
[367368840,1750769450139,-2104.84,0.00020273,2]
[367368842,1750769450148,-460.0,0.00020273,2]
[367368844,1750769450158,-544.13,0.00020273,2]
[367368846,1750769450167,-460.0,0.00020273,2]
[367368848,1750769450176,-460.0,0.00020273,2]
[367368850,1750769450185,-1132.63,0.00020273,2]
[367368852,1750769450193,-460.0,0.00020273,2]
[367368854,1750769450202,-460.0,0.00020273,2]
[367368856,1750769450212,-718.79,0.00020273,2]
[367368858,1750769450221,-2867.63,0.00020273,2]
[367368860,1750769450232,-460.0,0.00020273,2]
[367368862,1750769450242,-460.0,0.00020273,2]
[367368864,1750769450251,-740.01,0.00020273,2]
[367368866,1750769450260,-664.63,0.00020273,2]
[367368868,1750769450269,-460.0,0.00020273,2]
[367368870,1750769450278,-460.0,0.00020273,2]
[367368872,1750769450287,-808.74,0.00020273,2]
[367368874,1750769450296,-460.0,0.00020273,2]
[367368876,1750769450306,-460.0,0.00020273,2]
[367368878,1750769450316,-1651.67254472,0.00020273,2]
[367372760,1750769547965,347.20584594,0.00019078,2]
[367372761,1750769593643,5850.0,0.00024,30]
[367372762,1750769623872,150.0,0.000189,2]
[367372764,1750769628133,313.256706,0.00013699,2]
[367372766,1750769683379,150.0,0.000189,2]
[367372767,1750769693529,747.07208,0.00024,30]
[367372768,1750769715864,500.0,0.00019068,2]
[367372769,1750769800375,303.80511518,0.00019078,2]
[367372770,1750769925224,150.0,0.000189,2]
[367372773,1750769986418,168.0,0.00019067,2]
[367372774,1750769990237,168.0,0.00018971,2]
[367372776,1750770046148,265.8294758,0.00019077,2]
[367372781,1750770156320,460.0,0.00026175,60]
[367372782,1750770226290,150.0,0.000189,2]
[367372783,1750770257916,500.0,0.00019068,2]
[367372784,1750770291819,725.727164,0.00024,30]
[367372785,1750770296284,232.60079129,0.00019077,2]
[367372786,1750770360717,452.8827051,0.00018194,2]
[367372787,1750770549478,203.52569237,0.00019077,2]
[367372816,1750770632435,-319.59576877,0.00019165,2]
[367372818,1750770632491,-480.40423123,0.00019165,2]
[367372819,1750770632501,-300.0,0.00019165,2]
[367372820,1750770632510,-168.0,0.00019165,2]
[367372821,1750770632520,-480.0,0.00019165,2]
[367372822,1750770632530,-300.0,0.00019165,2]
[367372823,1750770632539,-224.53850481,0.00019165,2]
[367372825,1750770632549,-239.85991906,0.00019165,2]
[367372826,1750770632559,-207.4,0.00019166,2]
[367372827,1750770632568,-5000.0,0.00019166,2]
[367372828,1750770632578,-4575.02651199,0.00019166,2]
[367372829,1750770632587,-1745.28431754,0.00019166,2]
[367372830,1750770632599,-751.49037375,0.00019166,2]
[367372833,1750770638325,-3379.41307012,0.00019166,2]
[367372834,1750770638336,-500.0,0.00019166,2]
[367372835,1750770638437,-504.32018305,0.00019166,2]
[367372836,1750770638448,-1003.6245353,0.00019166,2]
[367372837,1750770638498,-2493.29573802,0.00019166,2]
[367372838,1750770638507,-500.0,0.00019177,2]
[367372839,1750770638517,-500.0,0.00019177,2]
[367372841,1750770638526,-500.0,0.00019177,2]
[367372843,1750770638536,-500.0,0.00019177,2]
[367372845,1750770638545,-500.0,0.00019177,2]
[367372847,1750770638555,-500.0,0.00019177,2]
[367372849,1750770638565,-500.0,0.00019177,2]
[367372851,1750770638575,-500.0,0.00019177,2]
[367372853,1750770638585,-500.0,0.00019177,2]
[367372856,1750770638594,-500.0,0.00019177,2]
[367372859,1750770638604,-500.0,0.00019177,2]
[367372861,1750770638613,-374.1555955,0.00019177,2]
[367373285,1750770646659,-16.17746896,0.00019177,2]
[367373286,1750770646668,-500.0,0.00019177,2]
[367373287,1750770646678,-500.0,0.00019177,2]
[367373288,1750770646687,-500.0,0.00019177,2]
[367373289,1750770646697,-281.65906527,0.00019177,2]
[367373296,1750770700012,305.774323,0.00013699,2]
[367373297,1750770793022,178.08498085,0.00019078,2]
[367373298,1750770811743,150.5,0.0002191,120]
[367373300,1750770812279,150.5,0.000219,120]
[367373301,1750770812639,150.5,0.0002189,120]
[367373305,1750770892470,822.490786,0.00024,30]
[367373308,1750770970905,500.0,0.00019068,2]
[367373309,1750770978283,179.0,0.00018834,2]
[367373310,1750770991033,179.0,0.00019037,2]
[367373312,1750771048509,213.69199919,0.00019078,2]
[367373315,1750771195734,-207.4,0.00019166,2]
[367373316,1750771195756,-300.0,0.00019176,2]
[367373317,1750771195778,-300.0,0.00019176,2]
[367373318,1750771195804,-247.79772776,0.00019176,2]
[367373319,1750771195829,-382.16388687,0.00019176,2]
[367373320,1750771195852,-500.0,0.00019176,2]
[367373321,1750771195874,-7117.07680962,0.00019177,2]
[367373322,1750771195899,-218.34093473,0.00019177,2]
[367373323,1750771195924,-500.0,0.00019177,2]
[367373324,1750771195948,-500.0,0.00019177,2]
[367373325,1750771195973,-500.0,0.00019177,2]
[367373326,1750771196000,-500.0,0.00019177,2]
[367373327,1750771196025,-500.0,0.00019177,2]
[367373328,1750771196057,-548.06321967,0.00019177,2]
[367373329,1750771196087,-450.0,0.00019177,2]
[367373330,1750771196112,-500.0,0.00019177,2]
[367373331,1750771196138,-500.0,0.00019177,2]
[367373332,1750771196163,-420.08213097,0.00019177,2]
[367373333,1750771196187,-500.0,0.00019177,2]
[367373334,1750771196211,-500.0,0.00019177,2]
[367373335,1750771196232,-561.60103954,0.00019178,2]
[367373336,1750771196253,-3619.93224964,0.00019178,2]
[367373337,1750771196274,-460.0,0.00019178,2]
[367373338,1750771196295,-460.0,0.00019178,2]
[367373339,1750771196319,-460.0,0.00019178,2]
[367373340,1750771196340,-460.0,0.00019178,2]
[367373341,1750771196362,-460.0,0.00019178,2]
[367373342,1750771196382,-223.12521175,0.00019178,2]
[367373343,1750771196404,-460.0,0.00019178,2]
[367373344,1750771196424,-156.36377622,0.00019178,2]
[367373345,1750771196446,-460.0,0.00019178,2]
[367373346,1750771196467,-460.0,0.00019178,2]
[367373347,1750771196488,-460.0,0.00019178,2]
[367373348,1750771196508,-460.0,0.00019178,2]
[367373349,1750771196530,-460.0,0.00019178,2]
[367373350,1750771196551,-405.22657715,0.00019178,2]
[367373351,1750771196575,-460.0,0.00019178,2]
[367373352,1750771196599,-460.0,0.00019178,2]
[367373353,1750771196621,-460.0,0.00019178,2]
[367373354,1750771196643,-460.0,0.00019178,2]
[367373355,1750771196665,-460.0,0.00019178,2]
[367373356,1750771196686,-596.3755632,0.00019178,2]
[367373357,1750771196708,-460.0,0.00019178,2]
[367373358,1750771196730,-460.0,0.00019178,2]
[367373359,1750771196751,-434.00746349,0.00019178,2]
[367373360,1750771196772,-460.0,0.00019178,2]
[367373361,1750771196795,-460.0,0.00019178,2]
[367373362,1750771196817,-460.0,0.00019178,2]
[367373363,1750771196837,-460.0,0.00019178,2]
[367373364,1750771196859,-460.0,0.00019178,2]
[367373365,1750771196879,-460.0,0.00019178,2]
[367373366,1750771196900,-460.0,0.00019178,2]
[367373367,1750771196922,-460.0,0.00019178,2]
[367373368,1750771196943,-460.0,0.00019178,2]
[367373369,1750771196964,-460.0,0.00019178,2]
[367373370,1750771196985,-460.0,0.00019178,2]
[367373371,1750771197005,-460.0,0.00019178,2]
[367373372,1750771197030,-460.0,0.00019178,2]
[367373373,1750771197051,-460.0,0.00019178,2]
[367373374,1750771197077,-460.0,0.00019178,2]
[367373375,1750771197099,-460.0,0.00019178,2]
[367373376,1750771197120,-460.0,0.00019178,2]
[367373377,1750771197141,-460.0,0.00019178,2]
[367373378,1750771197164,-460.0,0.00019178,2]
[367373379,1750771197185,-460.0,0.00019178,2]
[367373380,1750771197205,-460.0,0.00019178,2]
[367373381,1750771197226,-460.0,0.00019178,2]
[367373382,1750771197247,-460.0,0.00019178,2]
[367373383,1750771197267,-460.65578558,0.00019178,2]
[367373384,1750771197288,-460.0,0.00019178,2]
[367373385,1750771197308,-460.0,0.00019178,2]
[367373386,1750771197338,-460.0,0.00019178,2]
[367373387,1750771197359,-460.0,0.00019178,2]
[367373388,1750771197594,-460.0,0.00019178,2]
[367373389,1750771197615,-460.0,0.00019178,2]
[367373390,1750771197636,-460.0,0.00019178,2]
[367373391,1750771197657,-460.0,0.00019178,2]
[367373392,1750771197676,-293.63421466,0.00019178,2]
[367373393,1750771197697,-301.52955287,0.00019178,2]
[367373394,1750771197718,-460.0,0.00019178,2]
[367373395,1750771197739,-1280.28,0.00019178,2]
[367373396,1750771197760,-460.0,0.00019178,2]
[367373397,1750771197780,-460.0,0.00019178,2]
[367373398,1750771197801,-460.0,0.00019178,2]
[367373399,1750771197826,-460.0,0.00019178,2]
[367373400,1750771197847,-460.0,0.00019178,2]
[367373401,1750771197868,-460.0,0.00019178,2]
[367373402,1750771197888,-460.0,0.00019178,2]
[367373403,1750771197908,-231.55181155,0.00019178,2]
[367373404,1750771197929,-460.0,0.00019178,2]
[367373405,1750771197949,-460.0,0.00019178,2]
[367373406,1750771197969,-162.21852995,0.00019178,2]
[367373407,1750771197990,-460.0,0.00019178,2]
[367373408,1750771198011,-460.0,0.00019178,2]
[367373409,1750771198033,-460.0,0.00019178,2]
[367373410,1750771198053,-460.0,0.00019178,2]